{"text_format":"3","workbook":"xlsx","n_sheets":1,"sheets":["Materials v2"],"read":"whole","date_system":"1900"}

{"sheet":"Materials v2","index":0,"n_rows":42,"n_cols":34,"rows_kept":42}
["Material / Product Name","Material Impact Factor ID","Material / Product Type","Material Description","Functional Unit","Mass per functional unit (kg)","Bulk density (kg/m3)",null,"Source Type","Source Title","Source Ref","Source Link",null,"Upfront Biogenic (kgCO2e/functional unit)","Total A1-A3 Excl. Biogenic (kgCO2e/functional unit)","Total A1-A3 Incl. Biogenic (kgCO2e/functional unit)",null,"RICS 2023 Transportation Scenario","A4 (kgCO2e/functional unit)",null,"Wastage Rate (%)","Assumed waste scenario","A5.3 (kgCO2e/functional unit)",null,"Product Lifespan (Years)","End-of-life scenario - Reuse","End-of-life scenario - Recycling","End-of-life scenario - Incineration","End-of-life scenario - Disposal","C3 Notes (INCINERATION AND RECYCLING)","C3 factor (kgCO2e/kg)","C4 RICS Default Element List","C4 Notes (DISPOSAL)","C4 factor (kgCO2e/kg)"]
["A5 - Excavation","FHH-OTH-001","Other","Waste factor for excavation [A5.3] only","m3",1600,1600,null,"Other sources","IStructE HTCEC v2",null,"https://www.istructe.org/resources/blog/how-to-calculate-embodied-carbon-guide-2nd-edi/",null,0,0,{"$f":"N2+O2","v":0},null,"Locally manufactured (general)",null,null,{"v":1,"d":"100.0%"},"Reuse/recycling off-site",{"v":31.69319824,"d":"31.693"},null,60,{"v":0,"d":"0.0%"},{"v":1,"d":"100.0%"},{"v":0,"d":"0.0%"},{"v":0,"d":"0.0%"},"0 - From IStructE HTCEC 2nd edition",0,"N/A","No disposal",0]
["Aggregate - Compacted Type 1","FHH-CLA-002","Clay_and_stone_products","Compacted Type 1 MOT aggregate","m3",1600,1600,null,"ICE v3.0","Aggregates and sand, general UK, mixture of land won, marine, secondary and recycled, bulk, loose","Row 21 on 'ICE Summary' sheet",null,null,0,{"v":11.951432,"d":"11.95"},{"$f":"N3+O3","v":{"v":11.951432,"d":"11.95"}},null,"Locally manufactured (general)",null,null,{"v":0.1,"d":"10.0%"},"Reuse/recycling off-site",{"v":5.846463024,"d":"5.846"},null,60,{"v":0,"d":"0.0%"},{"v":0.975,"d":"97.5%"},{"v":0,"d":"0.0%"},{"v":0.025,"d":"2.5%"},"C3: Waste processing factor for aggregates taken from EPD One tonne of recycled stand/ aggregate/ 6FS/ or silt/ clay (BREG EN EPD No 000510) (UK): 0.0095 kgCO2e/kg",0.0095,"Aggregates, asphalt, masonry, concrete",null,0.001234]
["Aggregate - Sand","FHH-CLA-003","Clay_and_stone_products","Sand","m3",1600,1600,null,"ICE v3.0","[Same as FHH-CLA-002]",{"$nulls":3},0,{"v":11.95143328,"d":"11.95"},{"v":11.95143328,"d":"11.95"},null,"Locally manufactured (general)",null,null,{"v":0.1,"d":"10.0%"},"Reuse/recycling off-site",{"v":5.846463152,"d":"5.846"},null,60,{"v":0,"d":"0.0%"},{"v":0.975,"d":"97.5%"},{"v":0,"d":"0.0%"},{"v":0.025,"d":"2.5%"},"C3: Waste processing factor for aggregates taken from EPD One tonne of recycled stand/ aggregate/ 6FS/ or silt/ clay (BREG EN EPD No 000510) (UK): 0.0095 kgCO2e/kg",0.0095,"Aggregates, asphalt, masonry, concrete",null,0.001234]
["Blocks - Aircrete","FHH-CON-004","Concrete_products","Aerated concrete blocks","m3",600,600,null,"Collective EPD (UK)","UK Manufactured Precast Aerated Concrete Blocks","EPD-BPC-20170093-CCD1-EN","https://asbp.org.uk/wp-content/uploads/2021/04/EPD-Generic-Autoclaves-Aerated-Concrete-Block.pdf",null,0,{"v":168,"d":"168.0"},{"v":168,"d":"168.0"},null,"Regionally manufactured",null,null,{"v":0.03,"d":"3.0%"},"Reuse/recycling off-site",{"v":5.49793498,"d":"5.498"},null,60,{"v":0,"d":"0.0%"},{"v":0.975,"d":"97.5%"},{"v":0,"d":"0.0%"},{"v":0.025,"d":"2.5%"},"C3: Concrete recycling, concrete crushing: 3.0E-4 kg CO2e / kg",0.0003,"Aggregates, asphalt, masonry, concrete",null,0.001234]
["Blocks - Dense aggregate","FHH-CON-005","Concrete_products","Dense aggregate concrete blocks","m3",1425,1425,null,"Collective EPD (UK)","UK Manufactured Precast Concrete Blocks","EPD-BPC-20170092-CCD1-EN","https://app.2050-materials.com/media/certificates/5cfae2d9-f59d-4e92-b75f-ce4a93a6bc84.pdf",null,0,{"v":130,"d":"130.0"},{"v":130,"d":"130.0"},null,"Locally manufactured (general)",null,null,{"v":0.03,"d":"3.0%"},"Reuse/recycling off-site",{"v":4.759307015,"d":"4.759"},null,60,{"v":0,"d":"0.0%"},{"v":0.975,"d":"97.5%"},{"v":0,"d":"0.0%"},{"v":0.025,"d":"2.5%"},"C3: Concrete recycling, concrete crushing: 3.0E-4 kg CO2e / kg",0.0003,"Aggregates, asphalt, masonry, concrete",null,0.001234]
["Blocks - Lightweight aggregrate","FHH-CON-006","Concrete_products","Lightweight aggregrate concrete blocks","m3",1425,1425,null,"Collective EPD (UK)","[Same as FHH-CON-005]",{"$nulls":3},0,{"v":130,"d":"130.0"},{"v":130,"d":"130.0"},null,"Locally manufactured (general)",null,null,{"v":0.03,"d":"3.0%"},"Reuse/recycling off-site",{"v":4.759307015,"d":"4.759"},null,60,{"v":0,"d":"0.0%"},{"v":0.975,"d":"97.5%"},{"v":0,"d":"0.0%"},{"v":0.025,"d":"2.5%"},"C3: Concrete recycling, concrete crushing: 3.0E-4 kg CO2e / kg",0.0003,"Aggregates, asphalt, masonry, concrete",null,0.001234]
["Board - Chipboard","FHH-TIM-007","Timber_products","Chipboard","m3",660,660,null,"Other Sources - TDUK","TDUK - 2024 Embodied Carbon Data for Timber Products","Chipboard","https://timberdevelopment.uk/resources/embodied_carbon_data_for_timber_products/",null,{"v":-1009,"d":"-1009.0"},{"v":295,"d":"295.0"},{"v":-714,"d":"-714.0"},null,null,40,null,{"v":0.04,"d":"4.0%"},"Disposal to landfill/inceneration",{"v":13.9065698,"d":"13.907"},null,60,{"v":0,"d":"0.0%"},{"v":0,"d":"0.0%"},{"v":0.99,"d":"99.0%"},{"v":0.01,"d":"1.0%"},"C3: Waste wood and wood products incineration: 0.0129 kg CO2e / kg",0.0129,"Timber","Closest default assumption",0.828014]
["Board - Fibre cement","FHH-CEM-008","Cement_products","Fibre cement board","m3",1350,1350,null,"Other sources","Average of representative EPDs","SVK Fibre Cement, James Hardie Fibre Cement Products",null,null,0,{"v":1309.5,"d":"1310"},{"v":1309.5,"d":"1310"},null,"Regionally manufactured",null,null,{"v":0.04,"d":"4.0%"},"Disposal to landfill/inceneration",{"v":53.79331782,"d":"53.793"},null,30,{"v":0,"d":"0.0%"},{"v":0.17,"d":"17.0%"},{"v":0,"d":"0.0%"},{"v":0.83,"d":"83.0%"},"C3: Concrete recycling, concrete crushing: 3.0E-4 kg CO2e / kg",0.0003,"Aggregates, asphalt, masonry, concrete",null,0.001234]
["Board - Fibre gypsum","FHH-GYP-009","Gypsum_products","Gypsum fibre board","m3",1150,1150,null,"Other sources","Average of representative EPDs","Fermacell, Knauf Praha, Knauf Bulgaria, Gyproc",null,null,0,195.5,195.5,null,"Regionally manufactured",null,null,{"v":0.04,"d":"4.0%"},"Disposal to landfill/inceneration",{"v":11.72387428,"d":"11.724"},null,30,{"v":0,"d":"0.0%"},{"v":0.17,"d":"17.0%"},{"v":0,"d":"0.0%"},{"v":0.83,"d":"83.0%"},"C3: Waste wood and wood products incineration: 0.0129 kg CO2e / kg",0.0129,"Plasterboard","Closest default assumption",0.07195]
["Board - OSB","FHH-TIM-010","Timber_products","Orientated Strand Board","m3",606,606,null,"Other Sources - TDUK","TDUK - 2024 Embodied Carbon Data for Timber Products","Orientated Strand Board (OSB)","[Same as FHH-TIM-007]",null,{"v":-989,"d":"-989.0"},{"v":144,"d":"144.0"},{"v":-845,"d":"-845.0"},null,null,51,null,{"v":0.04,"d":"4.0%"},"Disposal to landfill/inceneration",{"v":8.26512318,"d":"8.265"},null,60,{"v":0,"d":"0.0%"},{"v":0,"d":"0.0%"},{"v":0.99,"d":"99.0%"},{"v":0.01,"d":"1.0%"},"C3: Waste wood and wood products incineration: 0.0129 kg CO2e / kg",0.0129,"Timber","Closest default assumption",0.828014]
["Board - Plasterboard","FHH-GYP-011","Gypsum_products","Plasterboard","m3",700,700,null,"ICE v2.0","ICE v2.0 - Plasterboard","Row 824 on 'ICE Summary' sheet",null,null,0,{"v":273,"d":"273.0"},{"v":273,"d":"273.0"},null,"Regionally manufactured",null,null,{"v":0.04,"d":"4.0%"},"Disposal to landfill/inceneration",{"v":13.2962713,"d":"13.296"},null,30,{"v":0,"d":"0.0%"},{"v":0.17,"d":"17.0%"},{"v":0,"d":"0.0%"},{"v":0.83,"d":"83.0%"},"C3: Waste wood and wood products incineration: 0.0129 kg CO2e / kg",0.0129,"Plasterboard",null,0.07195]
["Bricks - Clay facing","FHH-CLA-012","Clay_and_stone_products","Clay facing bricks","m3",1483,1485,null,"Collective EPD (UK)","UK Clay Brick","BREG EN EPD No. 000002","https://www.wienerberger.co.uk/content/dam/wienerberger/united-kingdom/marketing/documents-magazines/sustainability/correct/UK_EPD_UK_Clay_Brick_202402.pdf",null,0,{"v":316.305,"d":"316.3"},{"v":316.305,"d":"316.3"},null,"Regionally manufactured",null,null,{"v":0.06,"d":"6.0%"},"Reuse/recycling off-site",{"v":21.4936162,"d":"21.494"},null,60,{"v":0,"d":"0.0%"},{"v":0.975,"d":"97.5%"},{"v":0,"d":"0.0%"},{"v":0.025,"d":"2.5%"},"C3: Waste processing factor from UK Clay Brick BRE Global Scheme Document SD207 (BREG EN EPD No.: 000002 ECO EPD Ref. No. 000092 Issue 4): 0.0032 kgCO2e/kg",0.0032,"Aggregates, asphalt, masonry, concrete",null,0.001234]
["Concrete - for RC slab (C28/35)","FHH-CIS-013","Concrete_in_situ","Concrete for reinforced slab or foundations, C28/35 grade with 50% GGBS","m3",2380,2380,null,"Collective EPD (UK)","Ready-mixed concrete C28/35 CIIIA+SR Sector EPD","S-P-11235","https://api.environdec.com/api/v1/EPDLibrary/Files/21c018e3-4d08-473f-9870-08dc3c72202b/Data",null,-0.2,175.2,{"v":175,"d":"175.0"},null,"Locally manufactured (concrete)",null,null,{"v":0.015,"d":"1.5%"},"Reuse/recycling off-site",{"v":3.20888335,"d":"3.209"},null,60,{"v":0,"d":"0.0%"},{"v":0.975,"d":"97.5%"},{"v":0,"d":"0.0%"},{"v":0.025,"d":"2.5%"},"C3: Concrete recycling, concrete crushing: 3.0E-4 kg CO2e / kg",0.0003,"Aggregates, asphalt, masonry, concrete",null,0.001234]
["Concrete - Low-rise foundation (C8/10)","FHH-CIS-015","Concrete_in_situ","Concrete for low-rise foundations, C8/10 grade, market average GGBS % not specified","m3",2300,2300,null,"Other sources - MPA","MPA - Embodied carbon of concrete – Market Benchmark 2023","'UK average' for C8/10 grade","https://www.concretecentre.com/Resources/Publications/Embodied-carbon-of-concrete-%E2%80%93-Market-Benchmark.aspx",null,0,142.2,142.2,null,"Locally manufactured (concrete)",null,null,{"v":0.015,"d":"1.5%"},"Reuse/recycling off-site",{"v":2.69130345,"d":"2.691"},null,60,{"v":0,"d":"0.0%"},{"v":0.975,"d":"97.5%"},{"v":0,"d":"0.0%"},{"v":0.025,"d":"2.5%"},"C3: Concrete recycling, concrete crushing: 3.0E-4 kg CO2e / kg",0.0003,"Aggregates, asphalt, masonry, concrete",null,0.001234]
["Concrete - Precast beams","FHH-CON-016","Concrete_products","Precast concrete T-beam (nominal 150mm deep, 35 kg/linear m, scale by mass)","kg",1,2430,null,"Collective EPD (UK)","UK Manufactured Precast Concrete T-Beam","EPD-BPC-20190090-CBG1-EN","https://www.mpaprecast.org/MPAPrecast/media/root/Resources/Carbon%20EPDs/Precast-Concrete-T-Beam.pdf",null,0,{"v":0.2,"d":"0.200"},{"v":0.2,"d":"0.200"},null,"Nationally manufactured",null,null,{"v":0.01,"d":"1.0%"},"Reuse/recycling off-site",{"v":0.002325579,"d":"0.002"},null,60,{"v":0.01,"d":"1.0%"},{"v":0.965,"d":"96.5%"},{"v":0,"d":"0.0%"},{"v":0.025,"d":"2.5%"},"C3: Concrete recycling, concrete crushing: 3.0E-4 kg CO2e / kg",0.0003,"Aggregates, asphalt, masonry, concrete",null,0.001234]
["Insulation - EPS (white)","FHH-INS-017","Insulation_products","Expanded polystyrene foam insulation board (nominal thermal conductivity 0.039 W/mK)","m3",15,15,null,"Collective EPD (EU)","EPS hard foam – white with low bulk density preferentially for ETICS and interior insulation","EPD-IVH-20220129-CBG1-DE","https://www.austrotherm.at/fileadmin/user_upload/Umweltproduktdeklarationen_fuer_EPS.pdf",null,{"v":-0.175,"d":"-0.18"},{"v":47.175,"d":"47.18"},{"v":47,"d":"47.00"},null,"Regionally manufactured",null,null,{"v":0.07,"d":"7.0%"},"Disposal to landfill/inceneration",{"v":3.328792249,"d":"3.329"},null,60,{"v":0,"d":"0.0%"},{"v":0,"d":"0.0%"},{"v":0.95,"d":"95.0%"},{"v":0.05,"d":"5.0%"},"C3: PVC products incineration: 2.07 kg CO2e / kg",2.07,"Other","Value for inert material from OC",0.0026]
["Insulation - Mineral wool (low density)","FHH-INS-018","Insulation_products","Unfaced mineral wool, stone or glass - (nominal thermal conductivity 0.04 W/mK)","m3",24,24,null,"Collective EPD (EU)","Mineral wool insulation (low bulk density range)","EPD-FMI-20210016-IBG1-EN","https://kesko-onninen-pim-resources-production.s3-eu-west-1.amazonaws.com/pimdocuments/Mineral%20wool%20%28low%20bulk%20density%20range%29.pdf",null,-3.78,38.28,{"v":34.5,"d":"34.50"},null,"Regionally manufactured",null,null,{"v":0.07,"d":"7.0%"},"Disposal to landfill/inceneration",{"v":2.726173518,"d":"2.726"},null,60,{"v":0,"d":"0.0%"},{"v":0.01,"d":"1.0%"},{"v":0,"d":"0.0%"},{"v":0.99,"d":"99.0%"},"C4: Inert materials landfilling: 0.0026 kg CO2e / kg",null,"Other","Value for inert material from OC",0.0026]
["Insulation - PUR","FHH-INS-019","Insulation_products","Polyurethane foam insulation board with 50 µm aluminium facing - (nominal thickness 120mm, thermal conductivity 0.023 W/mK)","m3",115,31.5,null,"Collective EPD (EU)","PU thermal insulation boards with 50 μm aluminium facing","EPD-IVP-20210001-IBE2-EN","https://www.bauder.co.uk/getmedia/106fe300-9aa4-425e-8cc0-7a34351da310/Environmental-Product-Declaration-PU-thermal-insulation-boards-with-50-m-aluminium-facing.pdf",null,0,{"v":115,"d":"115.0"},{"v":115,"d":"115.0"},null,"Regionally manufactured",null,null,{"v":0.07,"d":"7.0%"},"Disposal to landfill/inceneration",{"v":8.253490575,"d":"8.253"},null,60,{"v":0,"d":"0.0%"},{"v":0,"d":"0.0%"},{"v":0.95,"d":"95.0%"},{"v":0.05,"d":"5.0%"},"C3: PVC products incineration: 2.07 kg CO2e / kg",2.07,"Other","Value for inert material from OC",0.0026]
["Joists - Engineered timber","FHH-TIM-020","Timber_products","Timber I-joist (nominal 4.12 kg/linear m, scale by mass)","lm",4.12,"--",null,"Other Sources - TDUK","TDUK - 2024 Embodied Carbon Data for Timber Products","I-Joists","[Same as FHH-TIM-007]",null,-7.85,4.25,{"v":-3.5999999999999996,"d":"-3.60"},null,null,0.43,null,{"v":0.02,"d":"2.0%"},"Disposal to landfill/inceneration",{"v":0.095181112,"d":"0.095"},null,60,{"v":0,"d":"0.0%"},{"v":0,"d":"0.0%"},{"v":0.99,"d":"99.0%"},{"v":0.01,"d":"1.0%"},"C3: Waste wood and wood products incineration: 0.0129 kg CO2e / kg",0.0129,"Timber",null,0.828014]
["Mortar - Above ground","FHH-CEM-021","Cement_products","Mortar, typical mix for above ground masonry","m3",2100,2100,null,"ICE v3.0","Mortar (1:1:6 Cement:Lime:Sand mix) (Using average UK Cement Mix)","Row 237 on 'ICE Summary' sheet",null,null,0,{"v":299.2365663,"d":"299.2"},{"v":299.2365663,"d":"299.2"},null,"Locally manufactured (general)",null,null,{"v":0.04,"d":"4.0%"},"Reuse/recycling off-site",{"v":13.65792556,"d":"13.658"},null,60,{"v":0,"d":"0.0%"},{"v":0.975,"d":"97.5%"},{"v":0,"d":"0.0%"},{"v":0.025,"d":"2.5%"},"C3: Concrete recycling, concrete crushing: 3.0E-4 kg CO2e / kg",0.0003,"Aggregates, asphalt, masonry, concrete",null,0.001234]
["Mortar - Below ground","FHH-CEM-022","Cement_products","Mortar, typical mix for below ground masonry","m3",2100,2100,null,"ICE v3.0","Mortar or screed (1:½:4½ Cement:Lime:Sand mix) (Using average UK Cement Mix)","Row 236 on 'ICE Summary' sheet",null,null,0,{"v":329.8598982,"d":"329.9"},{"v":329.8598982,"d":"329.9"},null,"Locally manufactured (general)",null,null,{"v":0.04,"d":"4.0%"},"Reuse/recycling off-site",{"v":14.88285884,"d":"14.883"},null,60,{"v":0,"d":"0.0%"},{"v":0.975,"d":"97.5%"},{"v":0,"d":"0.0%"},{"v":0.025,"d":"2.5%"},"C3: Concrete recycling, concrete crushing: 3.0E-4 kg CO2e / kg",0.0003,"Aggregates, asphalt, masonry, concrete",null,0.001234]
["Plaster","FHH-GYP-023","Gypsum_products","Gypsum plaster","m3",1700,1700,null,"ICE v2.0","ICE v2.0 - General (Gypsum)","Row 823 on 'ICE Summary' sheet",null,null,0,{"v":221,"d":"221.0"},{"v":221,"d":"221.0"},null,"Regionally manufactured",null,null,{"v":0.04,"d":"4.0%"},"Reuse/recycling off-site",{"v":10.56997659,"d":"10.570"},null,30,{"v":0,"d":"0.0%"},{"v":0.975,"d":"97.5%"},{"v":0,"d":"0.0%"},{"v":0.025,"d":"2.5%"},"C3: Concrete recycling, concrete crushing: 3.0E-4 kg CO2e / kg",0.0003,"Aggregates, asphalt, masonry, concrete","Closest default assumption",0.001234]
["Plastic - Polyethylene","FHH-PLA-024","Plastic_products","Polyethylene","kg",1,940,null,"ICE v2.0","ICE v2.0 - General Polyethylene","Row 832 on 'ICE Summary' sheet",null,null,0,{"v":2.54,"d":"2.540"},{"v":2.54,"d":"2.540"},null,"Nationally manufactured",null,null,{"v":0.05,"d":"5.0%"},"Disposal to landfill/inceneration",{"v":0.128613422,"d":"0.129"},null,60,{"v":0,"d":"0.0%"},{"v":0,"d":"0.0%"},{"v":1,"d":"100.0%"},{"v":0,"d":"0.0%"},"C3: PVC products incineration: 2.07 kg CO2e / kg",2.07,"N/A","No disposal",0]
["Plastic - Polypropylene","FHH-PLA-025","Plastic_products","Polypropylene","kg",1,910,null,"ICE v2.0","ICE v2.0 - Polypropylene, Injection Moulding","Row 841 on 'ICE Summary' sheet",null,null,0,{"v":4.49,"d":"4.490"},{"v":4.49,"d":"4.490"},null,"Nationally manufactured",null,null,{"v":0.05,"d":"5.0%"},"Disposal to landfill/inceneration",{"v":0.226113422,"d":"0.226"},null,60,{"v":0,"d":"0.0%"},{"v":0,"d":"0.0%"},{"v":1,"d":"100.0%"},{"v":0,"d":"0.0%"},"C3: PVC products incineration: 2.07 kg CO2e / kg",2.07,"N/A","No disposal",0]
["Plastic - uPVC","FHH-PLA-026","Plastic_products","uPVC","kg",1,1380,null,"ICE v2.0","ICE v2.0 - PVC Pipe","Row 849 on 'ICE Summary' sheet",null,null,0,{"v":3.23,"d":"3.230"},{"v":3.23,"d":"3.230"},null,"Nationally manufactured",null,null,{"v":0.05,"d":"5.0%"},"Disposal to landfill/inceneration",{"v":0.163113422,"d":"0.163"},null,60,{"v":0,"d":"0.0%"},{"v":0,"d":"0.0%"},{"v":1,"d":"100.0%"},{"v":0,"d":"0.0%"},"C3: PVC products incineration: 2.07 kg CO2e / kg",2.07,"N/A","No disposal",0]
["Render - Monocouche","FHH-CEM-027","Cement_products","Monocouche render, through colour","kg",1,1800,null,"Other sources","Representative EPD","Weberpral D monocouche render","https://api.environdec.com/api/v1/EPDLibrary/Files/fb603499-f8a1-4dcc-0ea5-08db3c2e10fb/Data",null,-0.0588,0.2298,{"v":0.171,"d":"0.1710"},null,"Locally manufactured (general)",null,null,{"v":0.04,"d":"4.0%"},"Reuse/recycling off-site",{"v":0.01234803,"d":"0.012"},null,30,{"v":0,"d":"0.0%"},{"v":0.975,"d":"97.5%"},{"v":0,"d":"0.0%"},{"v":0.025,"d":"2.5%"},"C3: Concrete recycling, concrete crushing: 3.0E-4 kg CO2e / kg",0.0003,"Aggregates, asphalt, masonry, concrete",null,0.001234]
["Screed - Levelling","FHH-CEM-028","Cement_products","Levelling screed","kg",1,2100,null,"Other sources","Estimate based on assumed composition (10:6:3:1 Cement: Aggregates: Water: Additives)","CEM I, Ordinary Portland Cement (OPC)' and",null,null,0,{"v":0.45824,"d":"0.4582"},{"v":0.45824,"d":"0.4582"},null,"Locally manufactured (general)",null,null,{"v":0.08,"d":"8.0%"},"Reuse/recycling off-site",{"v":0.03826726,"d":"0.038"},null,60,{"v":0,"d":"0.0%"},{"v":0.975,"d":"97.5%"},{"v":0,"d":"0.0%"},{"v":0.025,"d":"2.5%"},"C3: Concrete recycling, concrete crushing: 3.0E-4 kg CO2e / kg",0.0003,"Aggregates, asphalt, masonry, concrete",null,0.001234]
["Screed - Sand cement C25/30","FHH-CIS-030","Concrete_in_situ","Screed, C25/30 grade, market average GGBS % not specified","m3",2400,2400,null,"Other sources - MPA","MPA - Embodied carbon of concrete – Market Benchmark 2023","'UK average' for C25/30 grade","https://www.concretecentre.com/Resources/Publications/Embodied-carbon-of-concrete-%E2%80%93-Market-Benchmark.aspx",null,0,217.2,217.2,null,"Locally manufactured (concrete)",null,null,{"v":0.08,"d":"8.0%"},"Reuse/recycling off-site",{"v":20.48250407,"d":"20.483"},null,60,{"v":0,"d":"0.0%"},{"v":0.975,"d":"97.5%"},{"v":0,"d":"0.0%"},{"v":0.025,"d":"2.5%"},"C3: Concrete recycling, concrete crushing: 3.0E-4 kg CO2e / kg",0.0003,"Aggregates, asphalt, masonry, concrete",null,0.001234]
["Steel - Galvanised","FHH-STE-031","Steel_products","Galvanised mild steel","kg",1,7850,null,"Other sources","World Steel - Life cycle inventory (LCI) study - 2020 data release",null,"https://worldsteel.org/wp-content/uploads/Life-cycle-inventory-LCI-study-2020-data-release.pdf",null,0,{"v":2.67,"d":"2.670"},{"v":2.67,"d":"2.670"},null,"Nationally manufactured",null,null,{"v":0.01,"d":"1.0%"},"Reuse/recycling off-site",{"v":0.027043144,"d":"0.027"},null,60,{"v":0.05,"d":"5.0%"},{"v":0.93,"d":"93.0%"},{"v":0,"d":"0.0%"},{"v":0.02,"d":"2.0%"},"C3: Structural steel recycling, profiles shearing and handling: 0.0022 kg CO2e / kg",0.0022,"Metals",null,0.001264]
["Steel - Mild (Rebar)","FHH-STE-032","Steel_products","Unprotected mild steel reinforcement","kg",1,7850,null,"Collective EPD (Other)","Carbon Steel Reinforcing Bar (secondary production route - scrap), Sector Average","BREG EN EPD No. 000125","https://www.greenbooklive.com/filelibrary/EN_15804/EPD/BREGENEPD000125.pdf",null,0,{"v":0.787,"d":"0.7870"},{"v":0.787,"d":"0.7870"},null,"Nationally manufactured",null,null,{"v":0.05,"d":"5.0%"},"Reuse/recycling off-site",{"v":0.041071222,"d":"0.041"},null,60,{"v":0,"d":"0.0%"},{"v":0.98,"d":"98.0%"},{"v":0,"d":"0.0%"},{"v":0.02,"d":"2.0%"},"C3: Structural steel recycling, profiles shearing and handling: 0.0022 kg CO2e / kg",0.0022,"Metals",null,0.001264]
["Steel - Mild (Sections)","FHH-STE-033","Steel_products","Unprotected mild steel beams","kg",1,7850,null,"Other sources","British Constructional Steelwork Association",null,"https://www.newsteelconstruction.com/wp/uk-average-embodied-carbon-of-structural-steel-3/",null,0,{"v":1.74,"d":"1.740"},{"v":1.74,"d":"1.740"},null,"Nationally manufactured",null,null,{"v":0.01,"d":"1.0%"},"Reuse/recycling off-site",{"v":0.017743144,"d":"0.018"},null,60,{"v":0.07,"d":"7.0%"},{"v":0.93,"d":"93.0%"},{"v":0,"d":"0.0%"},{"v":0,"d":"0.0%"},"C3: Structural steel recycling, profiles shearing and handling: 0.0022 kg CO2e / kg",0.0022,"Metals",null,0.001264]
["Steel - Stainless","FHH-STE-034","Steel_products","Stainless steel","kg",1,7850,null,"ICE v3.0","Steel - stainless","Row 485 on 'Steel' material detail sheet",null,null,0,4.407,4.407,null,"Nationally manufactured",null,null,{"v":0.01,"d":"1.0%"},"Reuse/recycling off-site",{"v":0.044413144,"d":"0.044"},null,60,{"v":0.07,"d":"7.0%"},{"v":0.93,"d":"93.0%"},{"v":0,"d":"0.0%"},{"v":0,"d":"0.0%"},"C3: Structural steel recycling, profiles shearing and handling: 0.0022 kg CO2e / kg",0.0022,"N/A","No disposal",0]
["Tiles - Ceramic","FHH-CLA-035","Clay_and_stone_products","Ceramic or porcelain tiles","kg",1,1400,null,"ICE v2.0","Ceramics - Tiles and cladding panels","Row 259 on 'ICE Summary' sheet",null,null,0,{"v":0.78,"d":"0.7800"},{"v":0.78,"d":"0.7800"},null,"Regionally manufactured",null,null,{"v":0.05,"d":"5.0%"},"Reuse/recycling off-site",{"v":0.040413417,"d":"0.040"},null,60,{"v":0,"d":"0.0%"},{"v":0.975,"d":"97.5%"},{"v":0,"d":"0.0%"},{"v":0.025,"d":"2.5%"},"C3: Waste processing factor from UK Clay Brick BRE Global Scheme Document SD207 (BREG EN EPD No.: 000002 ECO EPD Ref. No. 000092 Issue 4)",0.0032,"Aggregates, asphalt, masonry, concrete","Closest default assumption",0.001234]
["Tiles - Clay roof","FHH-CLA-036","Clay_and_stone_products","Clay roof tiles","kg",1,1400,null,"ICE v2.0","Clay - tiles","Row 266 on 'ICE Summary' sheet",null,null,0,{"v":0.48,"d":"0.4800"},{"v":0.48,"d":"0.4800"},null,"Regionally manufactured",null,null,{"v":0.05,"d":"5.0%"},"Reuse/recycling off-site",{"v":0.025413417,"d":"0.025"},null,60,{"v":0,"d":"0.0%"},{"v":0.975,"d":"97.5%"},{"v":0,"d":"0.0%"},{"v":0.025,"d":"2.5%"},"C3: Waste processing factor from UK Clay Brick BRE Global Scheme Document SD207 (BREG EN EPD No.: 000002 ECO EPD Ref. No. 000092 Issue 4)",0.0032,"Aggregates, asphalt, masonry, concrete","Closest default assumption",0.001234]
["Tiles - Concrete roof","FHH-CON-037","Concrete_products","Concrete large format roof tiles","kg",1,2100,null,"Other sources","Representative EPD","Mannock roof tiles, Ireland. Rathmore","https://www.igbc.ie/wp-content/uploads/2018/11/EPD-Mannok-Rooftiles-9-11-18-EPDIE-18-12.pdf",null,0,{"v":0.265,"d":"0.2650"},{"v":0.265,"d":"0.2650"},null,"Nationally manufactured",null,null,{"v":0.05,"d":"5.0%"},"Reuse/recycling off-site",{"v":0.014877897,"d":"0.015"},null,60,{"v":0.01,"d":"1.0%"},{"v":0.965,"d":"96.5%"},{"v":0,"d":"0.0%"},{"v":0.025,"d":"2.5%"},"C3: Concrete recycling, concrete crushing: 3.0E-4 kg CO2e / kg",0.0003,"Aggregates, asphalt, masonry, concrete",null,0.001234]
["Tiles - Slate roof","FHH-CLA-038","Clay_and_stone_products","Slate roof tiles","kg",1,2800,null,"Other sources","Representative EPD","Cupa 5 roofing slate EPD, declared unit converted to kg","https://www.greenbooklive.com/filelibrary/EN_15804/EPD/BREGENEPD000506.pdf",null,{"v":-0.000130824,"d":"-0.000131"},{"v":0.007329152,"d":"0.007329"},{"v":0.007198328,"d":"0.007198"},null,"Nationally manufactured",null,null,{"v":0.05,"d":"5.0%"},"Reuse/recycling off-site",{"v":0.001986421,"d":"0.002"},null,60,{"v":0.01,"d":"1.0%"},{"v":0.965,"d":"96.5%"},{"v":0,"d":"0.0%"},{"v":0.025,"d":"2.5%"},"-",null,"Aggregates, asphalt, masonry, concrete","Closest default assumption",0.001234]
["Timber - Hardwood","FHH-TIM-039","Timber_products","Hardwood timber","m3",700,700,null,"Other sources","Representative EPD","Oak solid floor boards (S-P-09369)","https://api.environdec.com/api/v1/EPDLibrary/Files/d4300cff-c731-4659-86d4-08db523a4d9e/Data",null,{"v":-1143,"d":"-1143.0"},{"v":437,"d":"437.0"},{"v":-706,"d":"-706.0"},null,"Nationally manufactured",null,null,{"v":0.02,"d":"2.0%"},"Disposal to landfill/inceneration",{"v":9.307680167,"d":"9.308"},null,60,{"v":0,"d":"0.0%"},{"v":0.3,"d":"30.0%"},{"v":0.69,"d":"69.0%"},{"v":0.01,"d":"1.0%"},"C3: Waste wood and wood products incineration: 0.0129 kg CO2e / kg",0.0129,"Timber",null,0.828014]
["Timber - Softwood (treated)","FHH-TIM-040","Timber_products","Treated softwood timber","m3",477,477,null,"Other sources","Estimate based on untreated softwood (TDUK) with a factor (+15%) for treatment",{"$nulls":3},{"v":-750,"d":"-750.00"},81.65,-668.35,null,null,50,null,{"v":0.02,"d":"2.0%"},"Disposal to landfill/inceneration",{"v":2.816055905,"d":"2.816"},null,60,{"v":0,"d":"0.0%"},{"v":0.3,"d":"30.0%"},{"v":0.69,"d":"69.0%"},{"v":0.01,"d":"1.0%"},"C3: Waste wood and wood products incineration: 0.0129 kg CO2e / kg",0.0129,"Timber",null,0.828014]
["Timber - Softwood (untreated)","FHH-TIM-041","Timber_products","Untreated softwood timber","m3",477,477,null,"Other Sources - TDUK","TDUK - 2024 Embodied Carbon Data for Timber Products","Sawn softwoods","[Same as FHH-TIM-007]",null,{"v":-750,"d":"-750.0"},{"v":71,"d":"71.0"},{"v":-679,"d":"-679.0"},null,null,50,null,{"v":0.02,"d":"2.0%"},"Reuse/recycling off-site",{"v":17.64466805,"d":"17.645"},null,60,{"v":0.01,"d":"1.0%"},{"v":0.78,"d":"78.0%"},{"v":0.2,"d":"20.0%"},{"v":0.01,"d":"1.0%"},"C3: Waste wood and wood products incineration: 0.0129 kg CO2e / kg",0.0129,"Timber",null,0.828014]
["Window - uPVC frame DG","FHH-GLA-042","Glass_products","PVC frame, tilt and turn, double glazing (4/16/4), window u-value 1.2","m2",31.4,"--",null,"Collective EPD (EU)","Plastic windows (1,23 m x 1,48 m) with double insulating glass unit","EPD-QKE-20220002-IBG1-EN","https://www.asoven.com/wp-content/uploads/2023/02/EPD-double-glazing_2022_EN-1.pdf",null,{"v":-0.787,"d":"-0.79"},{"v":80.787,"d":"80.79"},{"v":80,"d":"80.00"},null,"Nationally manufactured",null,null,{"v":0.01,"d":"1.0%"},"Disposal to landfill/inceneration",{"v":0.818002291,"d":"0.818"},null,30,{"v":0,"d":"0.0%"},{"v":0,"d":"0.0%"},{"v":1,"d":"100.0%"},{"v":0,"d":"0.0%"},"C3: PVC products incineration: 2.07 kg CO2e / kg",2.07,"N/A","No disposal",0]
["Window - uPVC frame TG","FHH-GLA-043","Glass_products","PVC frame, tilt and turn, double glazing (4/16/4/16/4), window u-value 0.87","m2",39.8,"--",null,"Collective EPD (EU)","Plastic windows (1,23 m x 1,48 m) with triple insulating glass unit","EPD-QKE-20220156-IBG1-EN","https://www.deceuninck.com/wp-content/uploads/2023/02/Deceuninck_EPD-EPPA-PVC-U-window-123-x-148-m-with-insulated-triple-glazing-EPD-QKE-20220156-IBG1-EN-15-09-2022.pdf",null,-1.03,97.33,{"v":96.3,"d":"96.30"},null,"Nationally manufactured",null,null,{"v":0.01,"d":"1.0%"},"Disposal to landfill/inceneration",{"v":0.98614284,"d":"0.986"},null,30,{"v":0,"d":"0.0%"},{"v":0,"d":"0.0%"},{"v":1,"d":"100.0%"},{"v":0,"d":"0.0%"},"C3: PVC products incineration: 2.07 kg CO2e / kg",2.07,"N/A","No disposal",0]